[Event "2nd Doppelbauer Kiel GM 2022"]
[Site "Kiel"]
[Date "2022.07.05"]
[Round "9.5"]
[White "Ernst, Sipke"]
[Black "Bogner, Sebastian"]
[Result "1-0"]
[ECO "E29"]
[WhiteElo "2547"]
[BlackElo "2553"]
[Annotator "TA"]
[PlyCount "97"]
[EventDate "2022.06.30"]
[EventType "tourn"]
[EventCountry "GER"]
[SourceTitle "playchess.com"]
[Source "ChessBase"]
[SourceQuality "1"]
[TimeControl "40/5400+30:1800+30"]

{[%evp 18,97,-28,-26,-29,-16,-12,-43,0,0,0,0,29,-78,-58,-48,-57,-38,-10,-46,-41,-52,-47,-42,-43,-39,-45,-365,-353,-471,-462,-446,-430,-491,-492,-459,-367,-443,-132,-181,-183,-164,-186,-185,-168,-272,-274,-279,-272,-272,-280,-258,-251,-380,-378,-348,-304,-446,-440,-603,-404,-462,-475,-582,-562,-593,-427,-400,-202,-274,-39,-131,0,0,889,868,758,696,29996,29997,29997,-46]} 1. d4 {[%emt 0:01:20]} Nf6 {[%emt 0:00:08]} 2. c4 {[%emt 0:00:05]} e6 {[%emt 0:00:04]} 3. Nc3 {[%emt 0:00:03]} Bb4 {[%emt 0:00:06]} 4. e3 {[%emt 0:00:04]} O-O {[%emt 0:00:30]} 5. a3 {[%emt 0:00:08]} Bxc3+ {[%emt 0:00:45]} 6. bxc3 {[%emt 0:00:05]} c5 {[%emt 0:01:58]} 7. Bd3 {[%emt 0:00:28]} Nc6 {[%emt 0:00:38]} 8. Ne2 {[%emt 0:00:41]} b6 {[%emt 0:03:03]} 9. e4 {[%emt 0:06:34]} Ne8 {[%emt 0:01:30]} 10. Be3 {[%emt 0:06:20]} Ba6 {[%emt 0:05:54] E29: Nimzo-Indian: Sämisch: 5...0-0 6 e3 c5 7 Bd3 Nc6.} 11. Qa4 {[%emt 0:13:50] [#]} Na5 $146 {[%emt 0:27:26]} ({Predecessor:} 11... Qc8 12. O-O d5 13. exd5 exd5 14. Rfd1 cxd4 15. cxd4 Nd6 16. cxd5 Bxd3 17. Rxd3 Ne7 18. Qb3 {0-1 (60) Suder,J (2321)-Grzesik,G (2208) Sypniewo 2022}) 12. dxc5 {[%emt 0:02:21]} Rc8 {[%emt 0:10:25] Black is slightly better.} (12... d6 $5 {[%cal Rd6c5]}) 13. Rd1 {[%emt 0:15:13]} bxc5 {[%emt 0:04:52]} 14. e5 {[%emt 0:01:35] Inhibits Nd6.} f6 {[%emt 0:06:46]} 15. Qc2 {[%emt 0:13:37]} (15. exf6 $11 Nxf6 16. O-O) 15... fxe5 $17 {[%emt 0:14:23]} 16. Bxh7+ {[%emt 0:00:09]} Kh8 {[%emt 0:00:01]} 17. Bg6 {[%emt 0:10:00]} Nxc4 {[%emt 0:04:46]} 18. Bc1 {[%emt 0:03:44] This bishop pair is nice.} (18. Qe4 $5 {[%cal Rd1d7]} Kg8 19. Bh7+ Kh8 20. Bg6 $11) 18... d5 $1 {[%emt 0:06:56] Strongly threatening ...Qh4.} 19. Rd3 {[%emt 0:04:40]} Kg8 $1 {[%emt 0:01:45]} 20. O-O {[%emt 0:10:04]} Nf6 {[%emt 0:01:21]} 21. Rh3 {[%emt 0:00:15] And now Qd3 would win.} e4 {[%emt 0:00:41] Inhibits Qd3.} 22. f3 $2 {[%emt 0:03:47][%mdl 8192]} (22. Nf4 $15) 22... Ne5 $19 {[%emt 0:00:53]} 23. Nf4 {[%emt 0:03:16]} Bxf1 {[%emt 0:02:06]} 24. Kxf1 {[%emt 0:00:05]} Qb6 {[%emt 0:01:08]} 25. fxe4 {[%emt 0:01:26]} Nxg6 {[%emt 0:02:46]} 26. Nxg6 {[%emt 0:00:03]} Nxe4+ {[%emt 0:00:04]} 27. Kg1 {[%emt 0:02:37]} Qa6 $2 {[%emt 0:02:15]} 28. c4 {[%emt 0:00:56]} (28. Qd1 $17 {is a better defense.}) 28... Rf6 {[%emt 0:00:42]} (28... Qxc4 $2 29. Rh8+ Kf7 30. Rxf8+ Kxg6 31. Qxc4 Rxf8 32. Qa6 $18) 29. Ne7+ {[%emt 0:01:00]} Kf7 {[%emt 0:00:01]} 30. Nxc8 {[%emt 0:00:08]} Qxc8 $40 {[%emt 0:00:03][%mdl 128] White is in trouble.} 31. Bb2 {[%emt 0:00:19]} (31. Re3 $142) 31... Rf2 {[%emt 0:00:47]} 32. Rf3+ {[%emt 0:00:02]} Rxf3 {[%emt 0:00:05]} 33. gxf3 {[%emt 0:00:02][%mdl 4096] Endgame [#] KQB-KQN} Nd6 {[%emt 0:01:10]} 34. cxd5 {[%emt 0:00:02]} exd5 {[%emt 0:00:06][%cal Be6d5,Bd5d4][%mdl 32]} 35. Qh7 {[%emt 0:02:27]} (35. Qa4 {was worth a try.} a6 36. Be5 (36. Qf4+ $2 Nf5 $19)) 35... d4 {[%emt 0:01:09]} 36. Qh5+ {[%emt 0:00:02]} Ke6 {[%emt 0:01:17]} 37. Qg6+ {[%emt 0:00:31]} (37. Bc1 $142) 37... Kd5 {[%emt 0:00:00]} 38. Qxg7 {[%emt 0:00:32]} Qf5 {[%emt 0:00:00] Hoping for ...Qb1+.} 39. Qg8+ {[%emt 0:00:04]} Qe6 {[%emt 0:00:48]} 40. Qg5+ {[%emt 0:01:23]} Nf5 {[%emt 0:00:31] White must now prevent ...Qe1+.} 41. Kf1 {[%emt 0:06:32]} Kc6 {[%emt 0:02:30]} 42. Bc1 {[%emt 0:00:49]} c4 {[%emt 0:01:45]} (42... d3 $142 {aiming for ...Qe2+.} 43. Kg2 a5) 43. Qf4 {[%emt 0:03:56]} Kd5 $2 {[%emt 0:11:07]} ({Better is} 43... c3 $19 {...Ne3+ is the strong threat.} 44. Kf2 a5 45. Qe4+ Qxe4 46. fxe4 Nd6) 44. Qc7 {[%emt 0:02:26] [#]} (44. Qb8 $1 $15) 44... Qa6 {[%emt 0:08:37]} (44... Qe7 $1 $17 {[%cal Re7c7]} 45. Qc8 Nd6 46. Qa8+ Qb7 47. Qxb7+ Nxb7) 45. Qf7+ $11 {[%emt 0:00:55]} Ke5 $2 {[%emt 0:00:24][%mdl 8192]} (45... Qe6 $11 46. Qxa7 Qc6) 46. f4+ $18 {[%emt 0:01:23]} Ke4 {[%emt 0:00:50]} 47. Qe8+ {[%emt 0:00:05]} Kd3 {[%emt 0:00:34] Threatens to win with ...Ne3+.} 48. Qe2+ {[%emt 0:00:05]} Kc3 {[%emt 0:00:02]} 49. Qd2+ {[%emt 0:00:12][%mdl 32768] Weighted Error Value: White=0.58/Black=0.65. Loss on time!?} 1-0